Entity,Date ,Expense Type,Expense Area,Supplier,Transaction Number,  Amount (�)  
South West Yorkshire NHS Foundation Trust,03-Jan-23,Purchase of Healthcare,AS Collaborative,Cheswold Park Hospital,4672,"768,879"
South West Yorkshire NHS Foundation Trust,19-Jan-23,Purchase of Healthcare,AS Collaborative,Leeds & York Partnership NHS Foundation Trust,998755,"571,562"
South West Yorkshire NHS Foundation Trust,13-Jan-23,Purchase of Healthcare,AS Collaborative,Partnerships In Care Ltd,D510007594,"367,320"
South West Yorkshire NHS Foundation Trust,19-Jan-23,Purchase of Healthcare,AS Collaborative,Sheffield Health & Social Care NHS Foundation Trust,2100118808,"360,727"
South West Yorkshire NHS Foundation Trust,06-Jan-23,Purchase of Healthcare,AS Collaborative,Waterloo Manor Ltd,HO NHS LS 268,"343,871"
South West Yorkshire NHS Foundation Trust,09-Jan-23,Purchase of Healthcare,AS Collaborative,Sheffield Health & Social Care NHS Foundation Trust,2100118798,"293,365"
South West Yorkshire NHS Foundation Trust,04-Jan-23,Purchase of Healthcare,AS Collaborative,Cheswold Park Hospital,4684,"175,318"
South West Yorkshire NHS Foundation Trust,31-Jan-23,Staff Recharge,Trustwide,Mid Yorkshire Hospitals NHS Trust,1600022476,"174,441"
South West Yorkshire NHS Foundation Trust,17-Jan-23,Software Licence,Trustwide,Insight Direct (Uk) Ltd,2100473564,"158,438"
South West Yorkshire NHS Foundation Trust,13-Jan-23,Purchase of Healthcare,AS Collaborative,Partnerships In Care Ltd,D510007588,"144,717"
South West Yorkshire NHS Foundation Trust,04-Jan-23,Purchase of Healthcare,AS Collaborative,Tees Esk & Wear Valleys NHS Foundation Trust,4810021626,"137,023"
South West Yorkshire NHS Foundation Trust,05-Jan-23,Purchase of Healthcare,AS Collaborative,Rotherham Doncaster & South Humber Mental Health NHS Foundation Trust,0000093414,"134,624"
South West Yorkshire NHS Foundation Trust,19-Jan-23,Purchase of Healthcare,AS Collaborative,Cygnet Health Care Ltd,SYSEC008INV,"116,489"
South West Yorkshire NHS Foundation Trust,24-Jan-23,Purchase of Healthcare,AS Collaborative,Cygnet Health Care Ltd,WYSCYGUP01A,"107,765"
South West Yorkshire NHS Foundation Trust,24-Jan-23,Purchase of Healthcare,AS Collaborative,Cheswold Park Hospital,4690,"106,272"
South West Yorkshire NHS Foundation Trust,23-Jan-23,Software Licence,Trustwide,Silvercloud Health Ltd,INV62906,"67,500"
South West Yorkshire NHS Foundation Trust,17-Jan-23,Purchase of Healthcare,AS Collaborative,Leeds & York Partnership NHS Foundation Trust,998707,"63,771"
South West Yorkshire NHS Foundation Trust,03-Jan-23,Purchase of Healthcare,AS Collaborative,Cheswold Park Hospital,4607,"62,208"
South West Yorkshire NHS Foundation Trust,18-Jan-23,Staff Recharge,Forensics,Wakefield Council,91314342337,"60,642"
South West Yorkshire NHS Foundation Trust,04-Jan-23,Drugs,Trustwide,Lloyds Pharmacy Ltd,112628,"57,378"
South West Yorkshire NHS Foundation Trust,17-Jan-23,Staff Recharge,Trustwide,Leeds & York Partnership NHS Foundation Trust,998659,"49,010"
South West Yorkshire NHS Foundation Trust,09-Jan-23,Purchase of Healthcare,AS Collaborative,Mersey Care NHS Foundation Trust,72484393,"46,230"
South West Yorkshire NHS Foundation Trust,30-Jan-23,Drugs,Trustwide,NHS Business Services Authority,1000075555,"46,185"
South West Yorkshire NHS Foundation Trust,09-Jan-23,Purchase of Healthcare,AS Collaborative,Elysium Healthcare Ltd,PCS128112JAN23,"45,000"
South West Yorkshire NHS Foundation Trust,25-Jan-23,Purchase of Healthcare,AS Collaborative,Elysium Healthcare Ltd,PCS128112FEB23,"45,000"
South West Yorkshire NHS Foundation Trust,31-Jan-23,Mobile Phones,Trustwide,Vodafone Ltd,103171461,"43,964"
South West Yorkshire NHS Foundation Trust,31-Jan-23,Utilities,Trustwide,Totalenergies Gas & Power Ltd,28897647323,"42,882"
South West Yorkshire NHS Foundation Trust,04-Jan-23,Mobile Phones,Trustwide,Vodafone Ltd,103010247,"42,651"
South West Yorkshire NHS Foundation Trust,19-Jan-23,Purchase of Healthcare,Kirklees,Northorpe Hall Child & Family Trust,10872,"42,286"
South West Yorkshire NHS Foundation Trust,20-Jan-23,Security,Trustwide,Lone Worker Solutions Ltd,SIN2212LWS02223,"42,134"
South West Yorkshire NHS Foundation Trust,31-Jan-23,Utilities,Trustwide,Edf Energy Customers Ltd,000014243116,"41,500"
South West Yorkshire NHS Foundation Trust,11-Jan-23,Purchase of Healthcare,Forensics,Sheffield Childrens NHS Foundation Trust,2100223510,"41,391"
South West Yorkshire NHS Foundation Trust,06-Jan-23,Utilities,Trustwide,Edf Energy Customers Ltd,000013954708,"38,813"
South West Yorkshire NHS Foundation Trust,16-Jan-23,Purchase of Healthcare,AS Collaborative,Elysium Healthcare Ltd,FDN00601,"38,643"
South West Yorkshire NHS Foundation Trust,17-Jan-23,Purchase of Healthcare,AS Collaborative,Cheswold Park Hospital,4590,"36,247"
South West Yorkshire NHS Foundation Trust,18-Jan-23,Purchase of Healthcare,Trustwide,Touchstone-Leeds,20220356,"34,741"
South West Yorkshire NHS Foundation Trust,31-Jan-23,Utilities,Trustwide,Totalenergies Gas & Power Ltd,28897654023,"33,013"
South West Yorkshire NHS Foundation Trust,04-Jan-23,Advocacy Service,Trustwide,Cloverleaf Advocacy 2000 Ltd,11288,"31,397"
South West Yorkshire NHS Foundation Trust,27-Jan-23,Advocacy Service,Trustwide,Cloverleaf Advocacy 2000 Ltd,11782,"31,397"
South West Yorkshire NHS Foundation Trust,17-Jan-23,Staff Recharge,Trustwide,Leeds & York Partnership NHS Foundation Trust,998659,"30,075"
South West Yorkshire NHS Foundation Trust,18-Jan-23,Purchase of Healthcare,Trustwide,Cygnet Health Care Ltd,WKE0269504,"29,543"
South West Yorkshire NHS Foundation Trust,11-Jan-23,Staff Recharge,Barnsley,Barnsley Hospital NHS Foundation Trust,6026350,"28,726"
South West Yorkshire NHS Foundation Trust,08-Jan-23,Purchase of Healthcare,Trustwide,Waterloo Manor Ltd,HO NHS LS 266 OBS,"28,512"
South West Yorkshire NHS Foundation Trust,25-Jan-23,Staff Recharge,Calderdale,Calderdale Metropolitan Borough Council,IN22156356,"27,042"
South West Yorkshire NHS Foundation Trust,06-Jan-23,Purchase of Healthcare,AS Collaborative,Cheswold Park Hospital,4640,"26,984"
South West Yorkshire NHS Foundation Trust,24-Jan-23,Purchase of Healthcare,AS Collaborative,Cheswold Park Hospital,4695,"26,784"
South West Yorkshire NHS Foundation Trust,18-Jan-23,Purchase of Healthcare,Trustwide,Cygnet Health Care Ltd,WKE0269501,"26,691"
South West Yorkshire NHS Foundation Trust,03-Jan-23,Purchase of Healthcare,AS Collaborative,Cheswold Park Hospital,4567,"25,920"
South West Yorkshire NHS Foundation Trust,16-Jan-23,Purchase of Healthcare,Trustwide,Elysium Healthcare Ltd,FDN00600,"25,919"
South West Yorkshire NHS Foundation Trust,25-Jan-23,Purchase of Healthcare,Trustwide,Nouvita Ltd,9545,"25,704"
